bitfinex/quotes_BTCUSD_20260315
["timestamp","ask_amount","ask_price","bid_price","bid_amount"]
[1773564415690,0.06981777,71617.0,71606.0,0.06982655]
[1773564415856,0.069809,71624.0,71607.0,0.04984652]
[1773564416917,0.07002413,71631.0,71608.0,0.0698246]
[1773564417116,0.07012951,71631.0,71609.0,0.03873272]
[1773564417318,0.07012951,71631.0,71609.0,0.03733272]
[1773564417635,0.07012951,71631.0,71611.0,0.03733272]
[1773564418217,0.05912951,71631.0,71613.0,0.03733272]
[1773564418596,0.05912951,71631.0,71614.0,0.0014]
[1773564418913,0.05912951,71631.0,71616.0,0.0698168]
[1773564419235,0.05912951,71631.0,71617.0,0.03873272]
[1773564419736,0.05912951,71631.0,71618.0,0.0014]
[1773564419914,0.05912951,71631.0,71619.0,0.03733272]
[1773564420233,0.05912951,71631.0,71620.0,0.0014]
[1773564420563,0.05912951,71631.0,71621.0,0.03733272]
[1773564420769,0.05934952,71631.0,71621.0,0.03733272]
[1773564420973,0.05934952,71631.0,71622.0,0.10854357]
[1773564421191,0.05934952,71631.0,71622.0,0.03873272]
[1773564421387,0.05934952,71631.0,71623.0,0.0014]
[1773564421560,0.05934952,71631.0,71623.0,0.00134103]
[1773564421775,0.05934952,71631.0,71622.0,0.03733272]
[1773564421966,0.05934952,71631.0,71620.0,0.0698127]
[1773564422167,0.05934952,71631.0,71621.0,0.0014]
[1773564422775,0.11781165,71631.0,71622.0,0.0014]
[1773564422955,0.11781165,71631.0,71621.0,0.0014]
[1773564424095,0.05934952,71631.0,71621.0,0.0014]
[1773564424302,0.0700217,71632.0,71622.0,0.03733272]
[1773564424503,0.0700217,71632.0,71622.0,0.03743971]
[1773564425402,0.0700217,71632.0,71623.0,0.06980997]
[1773564425908,0.0580217,71632.0,71623.0,0.06980997]
[1773564426074,0.07002041,71633.0,71623.0,0.06980997]
[1773564427275,0.07002041,71633.0,71624.0,0.03733272]
[1773564427476,0.00022001,71632.0,71624.0,0.10714126]
[1773564428393,0.00022001,71632.0,71625.0,0.03873272]
[1773564428803,0.00022001,71632.0,71625.0,0.03733272]
[1773564428999,0.00022001,71632.0,71626.0,0.0014]
[1773564429403,0.07002132,71632.0,71626.0,0.0014]
[1773564429806,0.07002132,71632.0,71625.0,0.06980784]
[1773564430013,0.07002132,71632.0,71626.0,0.0014]
[1773564430210,0.00022001,71632.0,71626.0,0.0014]
[1773564430393,0.06979652,71637.0,71624.0,0.069809]
[1773564430394,0.0697955,71638.0,71627.0,0.0014]
[1773564430604,0.06979146,71642.0,71627.0,0.0014]
[1773564430605,0.06977794,71656.0,71629.0,0.03733272]
[1773564430949,0.06977794,71656.0,71630.0,0.03733272]
[1773564431076,0.06977794,71656.0,71636.0,0.11076597]
[1773564431282,0.06977794,71656.0,71637.0,0.03873272]
[1773564431481,0.06977794,71656.0,71639.0,0.03733272]
[1773564433729,0.04777794,71656.0,71640.0,0.10712613]
[1773564434944,0.04777794,71656.0,71640.0,0.06979341]
[1773564435146,0.04777794,71656.0,71641.0,0.03733272]
[1773564435378,0.06977782,71657.0,71641.0,0.03733272]
[1773564435579,0.06977782,71657.0,71641.0,0.03718338]
[1773564435875,0.06977782,71657.0,71641.0,0.1069752]
[1773564436098,0.00022001,71647.0,71641.0,0.1069752]
[1773564436302,0.12823898,71660.0,71641.0,0.1069752]
[1773564436303,0.0701144,71664.0,71642.0,0.03733272]
[1773564436431,0.06977101,71663.0,71642.0,0.03733272]
[1773564437581,0.07117101,71663.0,71642.0,0.03733272]
[1773564437951,0.07117101,71663.0,71644.0,0.03733272]
[1773564438147,0.07117101,71663.0,71646.0,0.03733272]
[1773564439278,0.07152804,71663.0,71646.0,0.03733272]
[1773564440275,0.07152804,71663.0,71648.0,0.03733272]
[1773564441487,0.05952804,71663.0,71648.0,0.03733272]
[1773564442837,0.05952804,71663.0,71649.0,0.06978464]
[1773564443058,0.05952804,71663.0,71649.0,0.10248559]
[1773564443224,0.05974805,71663.0,71649.0,0.10248559]
[1773564444131,0.00022001,71671.0,71649.0,0.06978464]
[1773564444352,0.06987231,71669.0,71651.0,0.03270095]
[1773564444983,0.06987231,71669.0,71652.0,0.07118172]
[1773564445185,0.06987231,71669.0,71653.0,0.03270095]
[1773564445540,0.00010702,71669.0,71653.0,0.03270095]
[1773564446945,0.00010702,71669.0,71652.0,0.07118172]
[1773564447321,0.00010702,71669.0,71648.0,0.06978474]
[1773564447322,0.05841098,71662.0,71648.0,0.06978474]
[1773564447546,0.05841098,71662.0,71649.0,0.0014]
[1773564447547,0.0325406,71661.0,71649.0,0.0014]
[1773564448053,0.0325406,71661.0,71650.0,0.0014]
[1773564448348,0.0325406,71661.0,71648.0,0.0014]
[1773564449006,0.04741098,71660.0,71648.0,0.0014]
[1773564449206,0.0697749,71659.0,71648.0,0.0014]
[1773564449650,0.0697749,71659.0,71646.0,0.000108]
[1773564449827,0.0697749,71659.0,71648.0,0.0014]
[1773564450345,0.0697749,71659.0,71646.0,0.000108]
[1773564450346,0.0325406,71658.0,71646.0,0.000108]
[1773564450581,0.0325406,71658.0,71646.0,0.001508]
[1773564451314,0.06977685,71657.0,71646.0,0.000108]
[1773564451536,0.06977685,71657.0,71646.0,0.001508]
[1773564452340,0.06977685,71657.0,71646.0,0.000108]
[1773564452666,0.06977685,71657.0,71646.0,0.001508]
[1773564452859,0.06977685,71657.0,71646.0,0.000108]
[1773564453291,0.06977685,71657.0,71639.0,0.03270095]
[1773564453292,0.0325406,71656.0,71645.0,0.0014]
[1773564453435,0.0325406,71654.0,71644.0,0.0014]
[1773564454088,0.0325406,71654.0,71637.0,0.06979558]
[1773564454089,0.0325406,71653.0,71641.0,0.0014]
[1773564454286,0.05841098,71651.0,71635.0,0.06979828]
[1773564454477,0.09095158,71651.0,71635.0,0.06979828]
[1773564454683,0.0325406,71650.0,71636.0,0.0014]
[1773564455608,0.0325406,71648.0,71636.0,0.0014]
[1773564456356,0.0325406,71648.0,71636.0,0.07119721]
[1773564456916,0.0115406,71648.0,71636.0,0.0014]
[1773564457793,0.06978659,71647.0,71636.0,0.0016]
[1773564458438,0.07118534,71649.0,71637.0,0.03270095]
[1773564458642,0.06978534,71649.0,71637.0,0.03270095]
[1773564459016,0.06978534,71649.0,71637.0,0.03305798]
[1773564459228,0.0014,71653.0,71637.0,0.03305798]
[1773564459435,0.07117587,71658.0,71637.0,0.03305798]
[1773564459798,0.07117587,71658.0,71638.0,0.06979536]
[1773564460011,0.07117587,71658.0,71639.0,0.03270095]
[1773564460308,0.06977587,71658.0,71640.0,0.03270095]
[1773564460938,0.06977587,71658.0,71642.0,0.03270095]
[1773564461134,0.06977587,71658.0,71644.0,0.03270095]
[1773564461335,0.06977222,71662.0,71644.0,0.03270095]
[1773564462044,0.06977222,71662.0,71645.0,0.03410095]
[1773564462229,0.06977222,71662.0,71645.0,0.10388949]
[1773564464281,0.0325406,71659.0,71644.0,0.0014]
[1773564464482,0.0045406,71657.0,71644.0,0.0014]
[1773564464682,0.0014,71658.0,71638.0,0.0014]
[1773564464683,0.02951407,71653.0,71638.0,0.0014]
[1773564464865,0.05841098,71650.0,71638.0,0.0014]
[1773564465420,0.0014,71651.0,71639.0,0.03270095]
[1773564465620,0.05841098,71660.0,71639.0,0.03270095]
[1773564465825,0.0014,71659.0,71639.0,0.03270095]
[1773564466025,0.0711749,71659.0,71640.0,0.06979341]
[1773564466268,0.0711749,71659.0,71641.0,0.03270095]
[1773564466571,0.0697749,71659.0,71641.0,0.03270095]
[1773564466774,0.0014,71658.0,71641.0,0.03270095]
[1773564467129,0.0697749,71659.0,71641.0,0.03270095]
[1773564467329,0.06977295,71661.0,71641.0,0.03270095]
[1773564468375,0.06977295,71661.0,71642.0,0.06979146]
[1773564468586,0.06977295,71661.0,71643.0,0.03270095]
[1773564468792,0.06977295,71661.0,71644.0,0.0014]
[1773564468988,0.06977295,71661.0,71645.0,0.03270095]
[1773564469934,0.0322118,71659.0,71642.0,0.06979146]
[1773564470059,0.0322118,71659.0,71645.0,0.0014]
[1773564470258,0.03339142,71658.0,71645.0,0.0014]
[1773564470665,0.06977685,71657.0,71645.0,0.07118852]
[1773564470886,0.06977685,71657.0,71646.0,0.03189156]
[1773564471589,0.06999296,71662.0,71646.0,0.03189156]
[1773564471590,0.06999207,71662.0,71646.0,0.03189156]
[1773564472174,0.04599207,71662.0,71646.0,0.03189156]
[1773564472919,0.04599207,71662.0,71648.0,0.03209965]
[1773564473128,0.04599207,71662.0,71649.0,0.0014]
[1773564473327,0.04599207,71662.0,71650.0,0.03209965]
[1773564473827,0.04599207,71662.0,71649.0,0.0014]
[1773564474195,0.04599207,71662.0,71649.0,0.03349965]
[1773564474598,0.00022001,71663.0,71649.0,0.03349965]
[1773564474803,0.07138501,71670.0,71649.0,0.03349965]
[1773564474804,0.06998481,71670.0,71652.0,0.06978172]
[1773564475006,0.06998481,71670.0,71653.0,0.03209965]
[1773564475514,0.0001,71672.0,71653.0,0.03209965]
[1773564475916,0.00022001,71665.0,71654.0,0.03209965]
[1773564476154,0.00022001,71665.0,71656.0,0.03209965]
[1773564476350,0.0001,71672.0,71656.0,0.03209965]
[1773564476560,0.00032001,71672.0,71656.0,0.03209965]
[1773564477123,0.00032001,71672.0,71657.0,0.06977685]
[1773564477336,0.00032001,71672.0,71658.0,0.03209965]
[1773564477591,0.10248152,71672.0,71657.0,0.06977685]
[1773564477864,0.10248152,71672.0,71658.0,0.0014]
[1773564477865,0.03239917,71669.0,71658.0,0.0014]
[1773564478223,0.03239917,71669.0,71656.0,0.07077719]
[1773564478463,0.03239917,71669.0,71657.0,0.0014]
[1773564478665,0.00032001,71672.0,71657.0,0.0014]
[1773564478869,0.00032001,71672.0,71658.0,0.03209965]
[1773564479271,0.00032001,71672.0,71660.0,0.09051063]
[1773564479470,0.00032001,71672.0,71660.0,0.03209965]
[1773564480174,0.06507863,71676.0,71660.0,0.03209965]
[1773564480349,0.06518567,71676.0,71660.0,0.03209965]
[1773564480568,0.00010704,71676.0,71660.0,0.05841098]
[1773564480755,0.00010704,71676.0,71661.0,0.03209965]
[1773564481083,0.000244,71680.0,71662.0,0.11076597]
[1773564481239,0.000244,71680.0,71664.0,0.03209965]
[1773564481776,0.000244,71680.0,71665.0,0.0014]
[1773564482002,0.03264317,71680.0,71665.0,0.0014]
[1773564483483,0.03264317,71680.0,71666.0,0.06976809]
[1773564483687,0.00022001,71677.0,71666.0,0.06976809]
[1773564484471,0.00022001,71677.0,71667.0,0.0014]
[1773564484672,0.00022001,71677.0,71666.0,0.06976809]
[1773564484874,0.00022001,71677.0,71667.0,0.0014]
[1773564485281,0.00022001,71677.0,71668.0,0.0014]
[1773564485704,0.00022001,71677.0,71664.0,0.06976809]
[1773564485921,0.00022001,71677.0,71665.0,0.0014]
[1773564486322,0.00022001,71677.0,71666.0,0.0014]
[1773564486622,0.00032693,71677.0,71666.0,0.0014]
[1773564486823,0.00032693,71677.0,71667.0,0.0014]
[1773564487197,0.00032693,71677.0,71663.0,0.06976809]
[1773564487430,0.00032693,71677.0,71664.0,0.0014]
[1773564487630,0.05608374,71678.0,71665.0,0.0014]
[1773564487834,0.05608374,71678.0,71666.0,0.06976809]
[1773564488136,0.05608374,71678.0,71667.0,0.0014]
[1773564488690,0.06999897,71680.0,71666.0,0.06976809]
[1773564488893,0.03239917,71679.0,71667.0,0.0014]
[1773564489393,0.03239917,71679.0,71666.0,0.06976809]
[1773564489989,0.06975641,71678.0,71665.0,0.00010692]
[1773564490193,0.03239917,71677.0,71665.0,0.00150692]
[1773564490864,0.03239917,71677.0,71665.0,0.00010692]
[1773564491871,0.03239917,71677.0,71665.0,0.00150692]
[1773564492176,0.05841098,71675.0,71662.0,0.05643065]
[1773564492375,0.05841098,71675.0,71654.0,0.06977972]
[1773564492376,0.03239917,71671.0,71655.0,0.0697788]
[1773564492577,0.03239917,71671.0,71656.0,0.0014]
[1773564492942,0.03239917,71671.0,71657.0,0.0014]
[1773564493441,0.00010692,71675.0,71658.0,0.03209965]
[1773564493675,0.00150692,71675.0,71658.0,0.03209965]
[1773564494240,0.07126686,71675.0,71659.0,0.0697749]
[1773564495480,0.05926686,71675.0,71659.0,0.0697749]
[1773564495685,0.07115882,71676.0,71659.0,0.0697749]
[1773564495834,0.07115882,71676.0,71659.0,0.06988182]
[1773564496558,0.10355799,71676.0,71659.0,0.06988182]
[1773564496925,0.03239917,71675.0,71659.0,0.06988182]
[1773564498483,0.07115882,71676.0,71659.0,0.06988182]
[1773564498718,0.07115882,71676.0,71660.0,0.03209965]
[1773564499069,0.06975882,71676.0,71660.0,0.03209965]
[1773564500470,0.0697571,71678.0,71661.0,0.06977295]
[1773564500970,0.10215627,71678.0,71661.0,0.06977295]
[1773564501370,0.0697571,71678.0,71662.0,0.03209965]
[1773564501669,0.00022001,71675.0,71663.0,0.0014]
[1773564503070,0.0649789,71676.0,71664.0,0.06977003]
[1773564505269,0.0697571,71678.0,71664.0,0.180536]
[1773564505473,0.10175777,71678.0,71664.0,0.180536]
[1773564505691,0.03200067,71677.0,71664.0,0.180536]
[1773564505892,0.03200067,71677.0,71663.0,0.11076597]
[1773564506076,0.03200067,71677.0,71663.0,0.06977084]
[1773564507066,0.0697571,71678.0,71663.0,0.06977084]
[1773564507067,0.0700522,71678.0,71663.0,0.06977084]
[1773564507286,0.06975835,71676.0,71663.0,0.06977084]
[1773564508075,0.000139,71676.0,71663.0,0.06977084]
[1773564510108,0.03213967,71676.0,71663.0,0.06977084]
[1773564510835,0.01813967,71676.0,71663.0,0.06977084]
[1773564511161,0.01813967,71676.0,71664.0,0.0014]
[1773564511365,0.01813967,71676.0,71663.0,0.06977084]
[1773564511565,0.01813967,71676.0,71664.0,0.0014]
[1773564512090,0.06975933,71675.0,71661.0,0.06977292]
[1773564512296,0.06975933,71675.0,71664.0,0.0014]
[1773564513568,0.06975933,71675.0,71661.0,0.06977292]
[1773564513813,0.06975933,71675.0,71662.0,0.0014]
[1773564514127,0.06975933,71675.0,71661.0,0.06977292]
[1773564514306,0.06975933,71675.0,71663.0,0.0014]
[1773564514712,0.06975933,71675.0,71664.0,0.0014]
[1773564515117,0.06975933,71675.0,71661.0,0.06977292]
[1773564515291,0.06975933,71675.0,71664.0,0.0014]
[1773564516918,0.10198001,71675.0,71664.0,0.0014]
[1773564517119,0.10198001,71675.0,71661.0,0.23535877]
[1773564517316,0.10198001,71675.0,71664.0,0.0014]
[1773564517725,0.06997934,71675.0,71664.0,0.0014]
[1773564518409,0.00022001,71675.0,71664.0,0.07116934]
[1773564520864,0.0697603,71674.0,71664.0,0.07116934]
[1773564522690,0.10176097,71674.0,71664.0,0.0014]
[1773564523875,0.60176097,71674.0,71664.0,0.0014]
[1773564524078,0.60176097,71674.0,71664.0,0.07117003]
[1773564524683,0.03200067,71673.0,71659.0,0.00030692]
[1773564524855,0.03200067,71669.0,71659.0,0.00030692]
[1773564525055,0.03200067,71669.0,71659.0,0.00170692]
[1773564525408,0.03200067,71669.0,71651.0,0.0016]
[1773564525581,0.05838828,71661.0,71651.0,0.0016]
[1773564525782,0.09038895,71661.0,71651.0,0.0016]
[1773564525962,0.03200067,71660.0,71651.0,0.0016]
[1773564526166,0.03200067,71660.0,71646.0,0.07118743]
[1773564526479,0.03200067,71660.0,71648.0,0.0014]
[1773564526834,0.0697749,71659.0,71645.0,0.06978812]
[1773564527103,0.03200067,71658.0,71649.0,0.0002]
[1773564527264,0.03200067,71658.0,71641.0,0.06999185]
[1773564527265,0.03340067,71658.0,71641.0,0.06999185]
[1773564527471,0.0014,71658.0,71641.0,0.06999185]
[1773564527673,0.0014,71658.0,71642.0,0.03024954]
[1773564527875,0.0014,71658.0,71644.0,0.03024954]
[1773564529540,0.10176876,71666.0,71646.0,0.03024954]
[1773564529852,0.0014,71662.0,71646.0,0.03024954]
[1773564531251,0.03119672,71663.0,71646.0,0.03024954]
[1773564531800,0.02823013,71659.0,71645.0,0.06978854]
[1773564532252,0.02823013,71659.0,71646.0,0.0014]
[1773564532453,0.02823013,71659.0,71643.0,0.06978973]
[1773564532684,0.02823013,71659.0,71641.0,0.0002]
[1773564532819,0.02823013,71659.0,71641.0,0.06999199]
[1773564533021,0.02823013,71659.0,71642.0,0.0014]
[1773564533330,0.06977198,71662.0,71650.0,0.02970215]
[1773564533513,0.06977198,71662.0,71651.0,0.0014]
[1773564533719,0.06976614,71668.0,71651.0,0.07118213]
[1773564534135,0.0014,71667.0,71651.0,0.10088428]
[1773564534551,0.06976614,71668.0,71651.0,0.10088428]
[1773564534746,0.0014,71667.0,71651.0,0.10088428]
[1773564535072,0.06976614,71668.0,71651.0,0.10088428]
[1773564535280,0.0014,71667.0,71651.0,0.10088428]
[1773564536178,0.06976809,71666.0,71651.0,0.10088428]
[1773564536587,0.06976809,71666.0,71651.0,0.03110215]
[1773564537293,0.02823013,71665.0,71651.0,0.0014]
[1773564537499,0.08661841,71661.0,71651.0,0.0014]
[1773564537698,0.02823013,71661.0,71651.0,0.0014]
[1773564538121,0.06977003,71664.0,71651.0,0.0014]
[1773564538474,0.05838828,71661.0,71651.0,0.0014]
[1773564538903,0.03638828,71661.0,71651.0,0.0014]
[1773564540452,0.06977393,71660.0,71647.0,0.06978654]
[1773564543423,0.06977393,71662.0,71647.0,0.06978654]
[1773564543627,0.09800406,71662.0,71647.0,0.06978654]
[1773564543802,0.05838828,71660.0,71647.0,0.06978654]
[1773564544008,0.08661841,71660.0,71647.0,0.06978654]
[1773564544432,0.02823013,71659.0,71647.0,0.06978654]
[1773564545449,0.02823013,71659.0,71642.0,0.0002]
[1773564545633,0.02823013,71657.0,71642.0,0.0002]
[1773564546154,0.02823013,71655.0,71642.0,0.0002]
[1773564546745,0.02823013,71651.0,71638.0,1e-08]
[1773564547090,0.02823013,71651.0,71637.0,1e-08]
[1773564547456,0.02823013,71651.0,71632.0,0.00174]
[1773564547657,0.0014,71650.0,71633.0,0.02970215]
[1773564548638,0.02823013,71649.0,71633.0,0.02970215]
[1773564548837,0.02823013,71649.0,71633.0,0.001]
[1773564549595,0.06978561,71648.0,71634.0,0.06979925]
[1773564549768,0.06978561,71648.0,71635.0,0.0014]
[1773564550086,0.06978561,71648.0,71634.0,0.06979925]
[1773564550293,0.06978561,71648.0,71635.0,0.0014]
[1773564550659,0.06978561,71648.0,71636.0,0.0014]
[1773564550863,0.06978561,71648.0,71632.0,0.00034]
[1773564550864,0.02823013,71647.0,71632.0,0.00034]
[1773564551881,0.09801769,71646.0,71635.0,0.0002]
[1773564552117,0.09801769,71646.0,71635.0,0.00055703]
[1773564552484,0.02823013,71645.0,71635.0,0.00055703]
[1773564555460,0.06978951,71644.0,71635.0,0.00055703]
[1773564555959,0.02823013,71643.0,71632.0,0.00034]
[1773564556126,0.06978951,71644.0,71630.0,0.02970215]
[1773564556532,0.05778951,71644.0,71630.0,0.02970215]
[1773564558395,0.05838828,71640.0,71629.0,0.0002]
[1773564559022,0.05838828,71640.0,71630.0,0.0002]
[1773564559380,0.05838828,71640.0,71629.0,0.0002]
[1773564559381,0.06979536,71638.0,71629.0,0.0002]
[1773564561236,0.09802549,71638.0,71629.0,0.0002]
[1773564562403,0.09802549,71638.0,71612.0,0.01124]
[1773564562404,0.06979536,71638.0,71612.0,0.01124]
[1773564562683,0.06979536,71638.0,71617.0,0.02815254]
[1773564562684,0.0014,71637.0,71617.0,0.02815254]
[1773564563324,0.0014,71637.0,71619.0,0.02815254]
[1773564563729,0.0697973,71636.0,71621.0,0.02815254]
[1773564564904,0.09699617,71636.0,71619.0,0.02815254]
[1773564565067,0.05846297,71631.0,71620.0,0.0014]
[1773564565694,0.06980315,71630.0,71620.0,0.0014]
[1773564566042,0.06980315,71630.0,71621.0,0.0014]
[1773564566515,0.06980315,71630.0,71621.0,0.0016]
[1773564568006,0.06980315,71630.0,71621.0,0.0002]
[1773564568542,0.06980315,71630.0,71617.0,0.02815254]
[1773564568717,0.06980315,71630.0,71619.0,0.02815254]
[1773564571290,0.06980315,71630.0,71618.0,0.0014]
[1773564573639,0.06980315,71630.0,71619.0,0.0002]
[1773564574339,0.05580315,71630.0,71619.0,0.0002]
[1773564576010,0.05580315,71630.0,71619.0,0.02835254]
[1773564577808,0.05580315,71630.0,71619.0,0.0002]
[1773564581137,0.05602316,71630.0,71619.0,0.0002]
[1773564583973,0.05602316,71630.0,71615.0,0.06072763]
[1773564585976,0.02829511,71629.0,71615.0,0.06072763]
[1773564586991,0.01029511,71629.0,71615.0,0.06072763]
[1773564587396,0.0698051,71628.0,71615.0,0.06072763]
[1773564587777,0.09810021,71628.0,71615.0,0.06072763]
[1773564588754,0.09810021,71628.0,71615.0,0.06092763]
[1773564592994,0.09810021,71628.0,71615.0,0.06042763]
[1773564594837,0.09010021,71628.0,71615.0,0.06042763]
[1773564596689,0.0618051,71628.0,71615.0,0.06042763]
[1773564596883,0.06980315,71631.0,71616.0,0.02645757]
[1773564597107,0.06979633,71637.0,71616.0,0.02645757]
[1773564597456,0.20933801,71637.0,71616.0,0.02645757]
[1773564597661,0.13954168,71636.0,71616.0,0.02645757]
[1773564597961,0.21073801,71637.0,71616.0,0.02645757]
[1773564599278,0.21073801,71637.0,71617.0,0.06981582]
[1773564599577,0.21073801,71637.0,71618.0,0.02785757]
[1773564600834,0.20933801,71637.0,71618.0,0.02785757]
[1773564601034,0.05846297,71630.0,71618.0,0.02785757]
[1773564601475,0.06980412,71629.0,71618.0,0.09767153]
[1773564602456,0.05780412,71629.0,71618.0,0.09767153]
[1773564602665,0.05776412,71629.0,71618.0,0.09767153]
[1773564604127,0.05776412,71629.0,71619.0,0.0014]
[1773564607144,0.06979925,71634.0,71620.0,0.0698129]
[1773564608125,0.05846297,71630.0,71618.0,0.06981396]
[1773564608344,0.05846297,71630.0,71620.0,0.0014]
[1773564609351,0.07002413,71629.0,71620.0,0.07121265]
[1773564610127,0.05102413,71629.0,71620.0,0.07121265]
[1773564611733,0.05102413,71629.0,71620.0,0.0014]
[1773564612674,0.05102413,71629.0,71619.0,0.06981332]
[1773564613683,0.05102413,71629.0,71617.0,0.06981528]
[1773564615900,0.02720734,71625.0,71614.0,0.0002]
[1773564616111,0.02720734,71625.0,71617.0,0.0002]
[1773564616112,0.02860734,71625.0,71617.0,0.0002]
[1773564617792,0.069809,71624.0,71617.0,0.0002]
[1773564618600,0.051809,71624.0,71617.0,0.0002]
[1773564619784,0.051809,71624.0,71612.0,0.00479928]
[1773564619977,0.05846297,71622.0,71612.0,0.00515687]
[1773564620178,0.05846297,71622.0,71612.0,0.0749775]
[1773564620931,0.05846297,71622.0,71612.0,0.0735775]
[1773564621135,0.05846297,71622.0,71612.0,0.0749775]
[1773564621298,0.05846297,71622.0,71612.0,0.0735775]
[1773564621647,0.051809,71624.0,71612.0,0.0735775]
[1773564622623,0.051809,71624.0,71612.0,0.0014]
[1773564622802,0.051809,71624.0,71612.0,0.0976265]
[1773564623955,0.051809,71624.0,71612.0,0.0978265]
[1773564624118,0.051809,71624.0,71612.0,0.02800587]
[1773564625613,0.0698051,71628.0,71613.0,0.06981972]
[1773564626244,0.0568051,71628.0,71613.0,0.06981972]
[1773564627856,0.0394134,71627.0,71613.0,0.06981972]
[1773564629908,0.06980705,71626.0,71614.0,0.03173749]
[1773564632371,0.05702511,71628.0,71615.0,0.06981777]
[1773564634085,0.04002511,71628.0,71615.0,0.06981777]
[1773564638326,0.08946376,71628.0,71615.0,0.06981777]
[1773564639547,0.04002511,71628.0,71615.0,0.06981777]
[1773564639696,0.04943865,71627.0,71615.0,0.06981777]
[1773564641407,0.04941047,71625.0,71614.0,0.06981787]
[1773564641607,0.03241047,71625.0,71612.0,0.07002035]
[1773564642288,0.03241047,71625.0,71613.0,0.0014]
[1773564642615,0.03241047,71625.0,71612.0,0.07002035]
[1773564642854,0.03241047,71625.0,71613.0,0.0014]
[1773564643251,0.03241047,71625.0,71615.0,0.0002]
[1773564643453,0.04078245,71623.0,71614.0,0.0014]
[1773564643661,0.04078245,71623.0,71613.0,0.0014]
[1773564643860,0.069809,71624.0,71613.0,0.0014]
[1773564644431,0.1060974,71624.0,71613.0,0.0014]
[1773564646572,0.06980705,71626.0,71613.0,0.07121966]
[1773564647991,0.071209,71627.0,71613.0,0.07121966]
[1773564648227,0.069809,71627.0,71613.0,0.07121966]
[1773564649194,0.10606674,71627.0,71613.0,0.07121966]
[1773564649400,0.09406674,71627.0,71613.0,0.07121966]
[1773564649609,0.03625774,71626.0,71613.0,0.07121966]
[1773564649809,0.03625774,71626.0,71613.0,0.07141966]
[1773564652242,0.06980802,71625.0,71613.0,0.07141966]
[1773564653141,0.10605285,71625.0,71613.0,0.07141966]
[1773564654040,0.06980802,71625.0,71613.0,0.07001966]
[1773564654238,0.06980997,71623.0,71615.0,0.06981777]
[1773564657045,0.05880997,71623.0,71615.0,0.06981777]
[1773564657994,0.05880997,71623.0,71615.0,0.07001777]
[1773564661296,0.05880997,71623.0,71616.0,0.0014]
[1773564661525,0.05880997,71623.0,71615.0,0.07001777]
[1773564661726,0.05880997,71623.0,71616.0,0.07121652]
[1773564662509,0.05880997,71623.0,71616.0,0.06981652]
[1773564662813,0.05880997,71623.0,71616.0,0.07121652]
[1773564664829,0.04880997,71623.0,71616.0,0.07121652]
[1773564666980,0.06980705,71626.0,71616.0,0.07121652]
[1773564668137,0.09831493,71626.0,71616.0,0.07121652]
[1773564668739,0.06980705,71626.0,71616.0,0.07121652]
[1773564668982,0.02850788,71625.0,71616.0,0.07121652]
[1773564671382,0.069809,71624.0,71616.0,0.07121652]
[1773564672280,0.069809,71624.0,71616.0,0.07121654]
[1773564672482,0.01045504,71623.0,71616.0,0.07121654]
[1773564672782,0.01045504,71623.0,71616.0,0.06981654]
[1773564672989,0.01045504,71623.0,71616.0,0.07121654]
[1773564673200,0.01045504,71623.0,71616.0,0.06981654]
[1773564673452,0.01045504,71623.0,71616.0,0.07121654]
[1773564673740,0.08026563,71623.0,71616.0,0.06981654]
[1773564674049,0.08026563,71623.0,71616.0,0.07121654]
[1773564674184,0.08026563,71623.0,71616.0,0.06981654]
[1773564674385,0.08026563,71623.0,71616.0,0.07121654]
[1773564674736,0.08026563,71623.0,71616.0,0.06981654]
[1773564674901,0.08026563,71623.0,71616.0,0.07121654]
[1773564677270,0.08026563,71623.0,71616.0,0.06981654]
[1773564677488,0.08026563,71623.0,71616.0,0.07121654]
[1773564680751,0.06226563,71623.0,71616.0,0.07121654]
[1773564680893,0.06226563,71623.0,71616.0,0.07141654]
[1773564681095,0.06248564,71623.0,71616.0,0.07141654]
[1773564681427,0.00022001,71623.0,71616.0,0.07141654]
[1773564685543,0.07003018,71623.0,71616.0,0.07141654]
[1773564687418,0.07003018,71623.0,71616.0,0.07001654]
[1773564687625,0.07003018,71623.0,71616.0,0.07141654]
[1773564687787,0.09740414,71623.0,71616.0,0.07001654]
[1773564687989,0.07003018,71623.0,71616.0,0.07141654]
[1773564688209,0.02737396,71622.0,71616.0,0.07141654]
[1773564688375,0.01737396,71622.0,71616.0,0.07141654]
[1773564688773,0.01737396,71622.0,71616.0,0.07001654]
[1773564689006,0.01737396,71622.0,71616.0,0.07141654]
[1773564689799,0.01737396,71622.0,71616.0,0.07001654]
[1773564689977,0.01737396,71622.0,71616.0,0.07141654]
[1773564690378,0.01737396,71622.0,71616.0,0.07001654]
[1773564690996,0.06981095,71622.0,71616.0,0.04728876]
[1773564691201,0.02683926,71621.0,71613.0,0.0002]
[1773564691379,0.02683926,71621.0,71612.0,0.0002]
[1773564692517,0.0698129,71620.0,71612.0,0.0002]
[1773564692727,0.0698129,71620.0,71612.0,0.0016]
[1773564693683,0.0698129,71620.0,71612.0,0.0002]
[1773564693684,0.09665216,71620.0,71612.0,0.0002]
[1773564694253,0.02683926,71619.0,71612.0,0.0002]
[1773564694670,0.06981485,71618.0,71612.0,0.0002]
[1773564696177,0.02683926,71617.0,71609.0,0.0002]
[1773564696500,0.02719607,71617.0,71607.0,0.0002]
[1773564696820,0.02719607,71617.0,71605.0,0.0002]
[1773564696821,0.0712168,71616.0,71605.0,0.0002]
[1773564697022,0.02683926,71615.0,71605.0,0.0002]
[1773564697381,0.02683926,71615.0,71604.0,0.0002]
[1773564697561,0.1296887,71616.0,71604.0,0.0002]
[1773564697562,0.0712168,71616.0,71604.0,0.0002]
[1773564697777,0.02683926,71615.0,71604.0,0.0002]
[1773564699418,0.02683926,71613.0,71604.0,0.0002]
[1773564703817,0.0698207,71612.0,71600.0,0.0014]
[1773564704024,0.02683926,71609.0,71600.0,0.0014]
[1773564704658,0.02683926,71609.0,71598.0,0.0014]
[1773564705981,0.02683926,71606.0,71598.0,0.0014]
[1773564706482,0.02683926,71606.0,71597.0,0.0002]
[1773564708039,0.06982752,71605.0,71597.0,0.0002]
[1773564709476,0.02683926,71604.0,71596.0,0.0002]
[1773564709682,0.02683926,71604.0,71592.0,0.0001301]
[1773564710299,0.06982947,71603.0,71592.0,0.0001301]
[1773564710457,0.0014,71602.0,71592.0,0.0001301]
[1773564710663,0.0598719,71602.0,71592.0,0.0001301]
[1773564711610,0.0422719,71602.0,71592.0,0.0001301]
[1773564712480,0.06983142,71601.0,71592.0,0.0001301]
[1773564712690,0.02821208,71600.0,71592.0,0.0001301]
[1773564714477,0.06983337,71599.0,71592.0,0.0001301]
[1773564718407,0.06983337,71599.0,71592.0,0.0003301]
[1773564718583,0.06983337,71600.0,71592.0,0.0003301]